bitfinex/quotes_ETHUSD_20260108
["timestamp","ask_amount","ask_price","bid_price","bid_amount"]
[1767878949362,0.91360848,3099.0,3097.4,10.23702846]
[1767878950628,0.91360848,3099.0,3097.7,0.002]
[1767878950827,6.45348648,3099.1,3097.7,0.002]
[1767878950828,0.001,3098.1,3097.7,0.002]
[1767878951029,4.14074807,3098.8,3097.7,0.002]
[1767878955850,0.91360848,3098.7,3097.7,0.002]
[1767878958875,4.14079394,3098.7,3097.7,0.002]
[1767878961482,0.91360848,3098.6,3097.7,0.002]
[1767878962389,0.001,3098.4,3097.7,0.002]
[1767878962576,0.91460848,3098.4,3097.7,0.002]
[1767878964185,0.001,3098.4,3097.7,0.002]
[1767878971060,3.22661614,3099.3,3097.7,0.002]
[1767878971061,3.22681759,3099.1,3097.8,0.34342557]
[1767878971274,0.91360848,3099.1,3097.8,0.34342557]
[1767878971558,0.91360848,3099.1,3097.7,0.002]
[1767878971559,0.91360848,3099.1,3098.0,0.34342557]
[1767878972295,0.91360848,3099.4,3098.3,0.34342557]
[1767878972457,0.91360848,3099.4,3098.5,0.34342557]
[1767878974184,0.91360848,3099.4,3098.6,3.22726392]
[1767878974367,0.001,3099.1,3098.6,3.22726392]
[1767878975061,0.001,3099.1,3098.6,3.57068949]
[1767878980788,0.001,3099.1,3098.6,0.34342557]
[1767878980994,0.94774639,3099.0,3098.3,3.22751769]
[1767878981190,0.94774639,3099.0,3098.3,3.23813851]
[1767878981594,0.94774639,3099.0,3098.3,3.58156408]
[1767878981891,0.94774639,3099.0,3098.4,3.22746712]
[1767878987598,0.94774639,3099.0,3098.7,0.002]
[1767878987971,0.001,3098.8,3098.7,0.002]
[1767878988295,0.94774639,3099.0,3098.4,3.22746712]
[1767878988493,0.001,3099.1,3098.5,0.34542557]
[1767878988700,0.94874639,3099.1,3098.5,0.34542557]
[1767878989276,3.22616736,3099.7,3098.4,6.45493936]
[1767878989476,0.94774639,3099.6,3098.5,0.90928784]
[1767878989677,0.94774639,3099.6,3098.6,7.36381568]
[1767878990085,0.94774639,3099.6,3098.7,0.90928784]
[1767878991775,0.94774639,3099.6,3098.8,0.90928784]
[1767878992700,0.94774639,3099.5,3098.8,0.90928784]
[1767878995286,0.94774639,3099.5,3098.8,4.13633977]
[1767878996302,0.94774639,3099.4,3098.4,0.90928784]
[1767878996486,0.94774639,3099.4,3098.5,3.22729944]
[1767878996887,0.94774639,3099.4,3098.5,4.13658728]
[1767878998705,0.94774639,3099.3,3098.5,4.13658728]
[1767878999700,0.94774639,3099.3,3098.8,0.002]
[1767878999888,0.94874639,3099.3,3098.8,0.002]
[1767879000285,0.94774639,3100.0,3098.9,0.90928784]
[1767879000503,0.94774639,3100.0,3098.8,0.002]
[1767879000695,0.94774639,3100.0,3098.9,6.45390298]
[1767879001274,0.043678,3100.1,3099.0,0.01293891]
[1767879001607,0.94774639,3100.4,3099.0,0.01293891]
[1767879001977,0.94774639,3100.4,3098.9,6.45390298]
[1767879002177,0.94774639,3100.3,3099.0,0.91675935]
[1767879002382,0.94774639,3100.3,3099.0,0.94902782]
[1767879002610,0.94774639,3100.3,3099.1,0.91675935]
[1767879002795,0.97676102,3100.1,3099.2,3.22663913]
[1767879003306,0.97676102,3100.1,3099.1,0.91675935]
[1767879003878,0.97676102,3100.1,3099.0,3.22681591]
[1767879004099,0.97676102,3100.1,3099.0,4.14357526]
[1767879004628,0.97676102,3100.1,3099.0,0.91675935]
[1767879004779,6.4516129,3100.0,3099.0,0.91675935]
[1767879004980,0.99282619,3099.9,3098.8,0.002]
[1767879005701,0.99282619,3099.9,3098.5,0.002]
[1767879005911,0.99282619,3099.7,3098.0,0.002]
[1767879006120,0.99282619,3099.7,3098.0,0.99036421]
[1767879006619,0.99282619,3099.7,3098.0,0.002]
[1767879006992,0.99282619,3099.5,3098.0,0.002]
[1767879008905,0.99282619,3099.3,3098.0,0.002]
[1767879009109,9.67929276,3099.4,3098.0,0.002]
[1767879009110,0.99282619,3099.1,3098.0,0.002]
[1767879011132,0.99282619,3098.9,3098.0,0.002]
[1767879013217,0.99282619,3098.7,3098.3,0.002]
[1767879015402,0.99282619,3098.5,3098.3,0.002]
[1767879017020,0.99282619,3098.5,3097.7,0.002]
[1767879017224,0.99282619,3098.5,3097.7,0.99036421]
[1767879017607,0.99282619,3098.4,3097.7,0.99036421]
[1767879018226,0.99282619,3098.4,3097.7,4.21856466]
[1767879018920,0.99282619,3099.1,3097.8,0.98836421]
[1767879019109,0.99282619,3099.0,3097.8,0.98836421]
[1767879019313,0.99282619,3098.8,3097.8,0.98836421]
[1767879019715,0.99282619,3098.8,3097.7,3.23020045]
[1767879019716,0.99282619,3098.7,3097.9,4.21635736]
[1767879019910,0.99282619,3098.9,3098.0,0.98836421]
[1767879020932,0.99282619,3099.1,3098.0,0.98836421]
[1767879022016,0.99282619,3098.9,3098.1,4.21614898]
[1767879022217,0.99282619,3098.9,3098.2,0.98836421]
[1767879022806,0.99282619,3099.1,3098.2,0.98836421]
[1767879023132,0.99282619,3099.3,3098.2,0.98836421]
[1767879025117,0.001,3099.4,3098.4,0.98836421]
[1767879025517,0.99382619,3099.4,3098.4,0.98836421]
[1767879025834,0.99382619,3099.4,3098.6,0.98836421]
[1767879026022,4.22026187,3099.4,3098.6,0.98836421]
[1767879026230,0.99282619,3099.3,3098.6,0.98836421]
[1767879026741,0.001,3099.0,3098.6,0.98836421]
[1767879027252,0.001,3099.0,3098.7,0.98836421]
[1767879027437,0.001,3099.4,3099.0,0.98836421]
[1767879027742,0.99282619,3100.0,3098.6,10.67011998]
[1767879027912,5.06547313,3100.2,3098.7,0.98836421]
[1767879028113,0.99282619,3100.1,3098.7,0.98836421]
[1767879028620,3.22539427,3100.4,3098.9,0.98836421]
[1767879028621,0.99282619,3100.3,3098.9,0.98836421]
[1767879028826,0.99282619,3100.3,3099.0,0.98836421]
[1767879029143,0.99282619,3100.3,3099.4,0.98836421]
[1767879029144,0.99282619,3100.2,3099.4,0.98836421]
[1767879030148,0.99282619,3100.5,3099.4,0.98836421]
[1767879031647,0.99282619,3100.6,3099.6,0.98836421]
[1767879032562,0.99282619,3100.6,3099.7,3.22611865]
[1767879033046,0.99282619,3100.6,3099.8,0.92492645]
[1767879033551,0.99282619,3100.6,3099.7,6.4522373]
[1767879034051,0.99282619,3100.6,3099.8,0.92492645]
[1767879034348,0.99282619,3100.6,3100.0,0.92492645]
[1767879034920,0.99282619,3100.6,3100.1,3.22570239]
[1767879035120,1.10421883,3101.6,3100.2,0.92492645]
[1767879035351,1.10421883,3101.6,3100.1,7.37633123]
[1767879035352,0.95421883,3101.5,3100.1,7.37633123]
[1767879036122,0.95421883,3101.4,3100.1,7.37633123]
[1767879036630,0.95421883,3101.4,3100.2,0.92492645]
[1767879037163,0.95421883,3101.3,3100.3,3.2254943]
[1767879037321,0.95421883,3101.3,3100.3,6.4509886]
[1767879037526,0.95421883,3101.3,3100.4,0.92492645]
[1767879038061,0.95421883,3101.3,3100.3,3.2254943]
[1767879038225,0.95421883,3101.3,3100.3,6.4509886]
[1767879038424,3.22435921,3101.4,3100.3,6.4509886]
[1767879038425,0.95421883,3101.1,3100.3,6.4509886]
[1767879038647,0.95421883,3101.1,3100.3,3.2254943]
[1767879039139,0.95421883,3101.1,3100.2,3.22552666]
[1767879039339,0.95421883,3101.1,3100.2,4.15045311]
[1767879039742,0.95421883,3101.1,3100.3,0.92492645]
[1767879040053,0.001,3101.2,3100.3,0.92492645]
[1767879040949,0.95521883,3101.2,3100.3,0.92492645]
[1767879041148,0.95521883,3101.2,3100.4,4.15031672]
[1767879042461,0.95521883,3101.2,3100.5,0.92492645]
[1767879043266,0.001,3101.2,3100.6,4.15010867]
[1767879044165,0.001,3101.2,3100.7,0.92492645]
[1767879044674,1.10421883,3101.6,3100.9,0.92492645]
[1767879045335,1.10421883,3101.6,3101.0,3.2247662]
[1767879045336,0.15,3101.6,3101.0,3.2247662]
[1767879045533,0.15,3101.6,3101.1,0.92492645]
[1767879045973,0.95421883,3101.8,3101.6,0.10144711]
[1767879047379,0.95421883,3101.8,3101.6,0.02649832]
[1767879048972,0.11283242,3101.6,3100.2,0.92492645]
[1767879049142,0.11283242,3101.6,3101.0,3.22468809]
[1767879049337,0.11283242,3101.6,3100.7,0.92492645]
[1767879050054,3.22338602,3102.4,3100.9,0.92492645]
[1767879050055,0.95421883,3102.4,3100.9,0.92492645]
[1767879050250,0.95421883,3102.4,3101.1,0.92492645]
[1767879050666,0.95421883,3102.4,3101.0,0.846]
[1767879050667,0.95421883,3102.4,3101.4,3.83853942]
[1767879050871,0.95421883,3102.4,3101.5,0.92492645]
[1767879051270,0.95421883,3102.2,3101.2,3.22455823]
[1767879051443,0.95421883,3102.2,3101.2,6.44911646]
[1767879051960,0.95421883,3102.2,3101.2,7.37404291]
[1767879052159,0.95421883,3102.2,3101.2,4.14948468]
[1767879052368,0.95421883,3102.2,3101.2,7.37404291]
[1767879052582,0.95421883,3102.2,3101.2,4.14948468]
[1767879052949,0.95421883,3102.2,3101.2,3.22455823]
[1767879053146,0.95421883,3102.2,3101.2,6.44911646]
[1767879053693,0.95421883,3102.2,3101.1,7.37425087]
[1767879053847,0.95421883,3102.1,3101.1,6.44932442]
[1767879054287,0.95421883,3102.1,3101.2,0.92492645]
[1767879054738,0.95421883,3102.1,3101.3,0.92492645]
[1767879054847,7.41521664,3104.9,3101.1,6.44932442]
[1767879054848,0.95421883,3102.3,3101.4,2.91361297]
[1767879055052,0.95421883,3102.7,3101.8,2.91361297]
[1767879055751,0.95421883,3102.6,3101.8,2.91361297]
[1767879056050,0.95421883,3102.6,3101.9,0.2913613]
[1767879056987,3.22304037,3102.7,3101.9,1.21628775]
[1767879057995,4.17715334,3102.8,3101.9,4.44008761]
[1767879058367,4.17715334,3102.8,3101.9,1.21628775]
[1767879058786,0.95421883,3102.7,3101.9,1.21628775]
[1767879058975,0.95421883,3102.7,3101.6,3.83853942]
[1767879059173,0.95421883,3102.7,3101.8,3.22386259]
[1767879060326,0.95421883,3102.7,3101.8,0.92492645]
[1767879060599,0.95421883,3102.7,3101.8,3.83853942]
[1767879060800,0.95421883,3102.7,3101.8,0.92492645]
[1767879061502,0.95421883,3102.7,3101.9,0.92492645]
[1767879061799,0.001,3102.5,3101.9,0.92492645]
[1767879062367,0.95173351,3102.5,3101.8,3.22392722]
[1767879062813,3.17474177,3102.7,3101.8,3.22392722]
[1767879063100,0.76174102,3102.6,3101.8,4.17566811]
[1767879063610,0.76174102,3102.5,3101.7,3.22400757]
[1767879063794,0.76174102,3102.5,3101.8,3.22392634]
[1767879064434,0.76174102,3102.4,3101.2,0.95174089]
[1767879064708,0.76174102,3102.4,3100.9,4.13943592]
[1767879064903,0.76174102,3102.4,3100.7,3.22498872]
[1767879064904,0.76174102,3102.2,3101.1,4.13925759]
[1767879065104,0.76174102,3102.0,3101.2,3.2245005]
[1767879065524,0.76174102,3102.0,3101.3,3.22443224]
[1767879065685,3.22320709,3102.5,3101.5,0.91460676]
[1767879065892,3.22320709,3102.5,3101.7,0.91460676]
[1767879066109,0.76174102,3102.4,3101.5,3.22422124]
[1767879066298,3.98512515,3102.4,3101.5,0.91460676]
[1767879066497,0.76174102,3102.3,3101.5,0.91460676]
[1767879067504,0.76174102,3102.3,3101.3,0.91460676]
[1767879067906,0.76174102,3102.3,3101.0,0.846]
[1767879068240,0.76174102,3102.1,3101.0,4.07070104]
[1767879068649,0.76174102,3102.0,3101.0,4.9853078]
[1767879068937,0.76174102,3102.0,3101.0,0.91460676]
[1767879069136,0.76174102,3102.0,3100.3,3.2383894]
[1767879069137,0.76174102,3102.0,3100.8,3.22489341]
[1767879069629,0.76174102,3102.0,3100.7,4.13962966]
[1767879069801,0.76174102,3102.0,3100.7,0.91460676]
[1767879070007,0.76174102,3102.0,3100.0,0.91460676]
[1767879070317,0.76174102,3101.8,3100.0,0.91460676]
[1767879071112,0.76174102,3101.8,3099.4,3.22634127]
[1767879071312,0.76174102,3101.8,3099.5,0.91460676]
[1767879071815,0.76174102,3101.8,3099.8,4.14061753]
[1767879072014,0.76174102,3101.6,3099.9,0.91460676]
[1767879072228,0.76174102,3101.4,3099.9,0.91460676]
[1767879072731,0.76174102,3101.2,3099.9,4.14041938]
[1767879073030,6.44890852,3101.3,3100.0,0.91460676]
[1767879073031,0.76174102,3101.0,3100.0,0.91460676]
[1767879073725,0.76174102,3101.0,3100.6,0.002]
[1767879074597,0.76174102,3101.0,3099.7,0.91460676]
[1767879074814,0.76174102,3101.0,3099.5,3.2262887]
[1767879074815,0.76174102,3100.8,3099.4,0.91660676]
[1767879075018,0.76174102,3100.6,3099.4,0.91660676]
[1767879075327,0.76174102,3100.4,3099.4,0.91660676]
[1767879075534,0.76174102,3100.4,3099.4,0.002]
[1767879075827,0.76174102,3100.4,3098.9,0.91460676]
[1767879076027,0.76174102,3100.4,3098.6,3.22724839]
[1767879076028,0.76174102,3100.4,3098.6,4.14185515]
[1767879076533,0.76174102,3100.4,3098.6,4.14185018]
[1767879076730,0.76174102,3100.2,3098.6,0.91460676]
[1767879077034,0.76174102,3100.2,3098.6,3.22723573]
[1767879077527,0.76174102,3100.2,3098.7,0.91460676]
[1767879077729,0.846,3100.1,3098.7,0.91460676]
[1767879077912,0.846,3100.1,3098.9,0.91460676]
[1767879078903,0.846,3100.0,3099.0,4.14145413]
[1767879079629,3.22518222,3100.6,3099.1,0.91460676]
[1767879079828,0.846,3100.5,3099.1,0.91460676]
[1767879080136,3.2248054,3101.0,3099.1,0.91460676]
[1767879080137,3.9864442,3101.1,3099.3,0.92754567]
[1767879080303,0.846,3101.0,3099.5,0.91460676]
[1767879080502,1.60774102,3101.0,3099.5,0.91460676]
[1767879081047,3.22487019,3100.9,3099.7,0.91460676]
[1767879081215,0.846,3100.8,3099.7,0.91460676]
[1767879082802,0.846,3100.8,3099.9,0.91460676]
[1767879083605,3.22480976,3101.0,3099.9,0.91460676]
[1767879083804,4.07080976,3101.0,3099.9,0.91460676]
[1767879084321,7.29563078,3101.0,3099.9,0.91460676]
[1767879084635,8.0573718,3101.0,3099.9,0.91460676]
[1767879084831,0.76174102,3100.9,3099.6,0.91460676]
[1767879085030,0.76174102,3100.7,3098.9,0.91460676]
[1767879085224,0.76174102,3100.7,3099.3,4.14110395]
[1767879085529,0.76174102,3100.7,3099.4,0.91460676]
[1767879085742,0.76174102,3100.7,3099.4,4.14100632]
[1767879085922,0.76274102,3100.6,3099.4,0.91460676]
[1767879086118,0.846,3100.5,3099.4,0.91460676]
[1767879087049,3.22539027,3100.4,3099.5,3.22630469]
[1767879087255,4.07132998,3100.5,3099.5,3.22630469]
[1767879088016,4.07132998,3100.5,3099.4,0.91460676]
[1767879088017,7.29665996,3100.5,3099.4,4.14101982]
[1767879088203,4.07132998,3100.5,3099.4,4.14101982]
[1767879088644,4.07132998,3100.5,3099.5,0.91460676]
[1767879089341,0.76174102,3100.4,3099.1,0.91460676]
[1767879089532,0.76174102,3100.2,3098.8,0.91460676]
[1767879091204,0.76174102,3100.0,3098.8,4.14161874]
[1767879091431,1.60774102,3099.9,3098.8,4.14161874]
[1767879091732,0.846,3100.3,3098.9,0.91460676]
[1767879092053,0.846,3100.3,3098.8,6.45406761]
[1767879092054,0.846,3100.3,3099.1,0.91460676]
[1767879092265,0.847,3100.4,3099.1,0.91460676]
[1767879093440,4.07247794,3100.4,3099.3,0.98512134]
[1767879094543,0.847,3100.4,3099.3,0.98512134]
[1767879095718,0.001,3100.6,3099.5,0.98512134]
[1767879095930,0.001,3100.6,3099.7,0.98512134]
[1767879097144,3.22465126,3101.2,3100.4,0.98512134]
[1767879097448,0.847,3101.3,3100.4,0.98512134]
[1767879097449,0.001,3100.6,3100.4,0.98512134]
[1767879099730,0.76174102,3101.2,3100.3,3.22543026]
[1767879099952,0.76174102,3101.1,3100.3,3.22543026]
[1767879100352,0.76174102,3101.1,3100.4,3.22539027]
[1767879100743,0.483324,3101.2,3100.5,0.98512134]
[1767879101869,3.22466221,3101.1,3100.2,0.98512134]
[1767879102081,3.22466221,3101.1,3100.3,0.98512134]
[1767879103876,3.80515677,3101.1,3100.3,0.98512134]
[1767879106177,3.80515677,3101.1,3100.2,3.22557771]
[1767879106178,7.79156,3101.1,3100.1,0.98512134]
[1767879106476,0.76174102,3101.0,3100.0,0.98512134]
[1767879106779,7.79156,3101.1,3100.1,0.98512134]
[1767879107273,0.76174102,3101.0,3100.1,0.98512134]
[1767879107573,1.58922942,3101.0,3100.1,0.98512134]
[1767879108073,4.81406009,3101.0,3100.1,4.21081495]
[1767879108375,4.81406009,3101.0,3100.1,0.98512134]
[1767879108544,8.03889076,3101.0,3100.1,0.98512134]
[1767879108949,4.81406009,3101.0,3100.1,0.98512134]
[1767879109346,0.001,3100.7,3100.1,0.98512134]
[1767879109673,0.001,3100.7,3100.2,0.98512134]
[1767879110795,0.001,3100.7,3100.3,0.98512134]
[1767879112358,0.001,3100.7,3100.2,6.45117777]
[1767879112359,0.001,3100.7,3100.5,0.98512134]
[1767879113161,0.001,3100.7,3100.2,0.98512134]
[1767879113369,0.001,3100.7,3100.3,4.2106138]
[1767879113554,0.001,3100.7,3100.3,0.98512134]
[1767879114652,0.001,3100.7,3100.4,0.98512134]
[1767879117994,0.001,3100.7,3100.5,0.98512134]
[1767879119115,3.98614819,3101.4,3100.5,0.98512134]
[1767879119274,3.22440717,3101.4,3100.5,0.98512134]
[1767879119471,3.22424722,3101.5,3100.7,0.98512134]
[1767879119786,4.83193533,3101.6,3100.8,0.98512134]
[1767879120298,3.98593533,3101.6,3100.8,0.98512134]
[1767879120505,3.22396642,3101.8,3100.8,0.98512134]
[1767879120675,1.60774102,3101.9,3100.8,0.98512134]
[1767879120676,0.846,3101.9,3100.8,0.98512134]
[1767879121499,3.9856755,3101.8,3100.9,0.98512134]
[1767879121698,0.76174102,3101.7,3100.4,0.98512134]
[1767879121890,0.76174102,3101.7,3100.5,0.98512134]
[1767879122778,0.76174102,3101.7,3100.6,0.002]
[1767879123002,0.76174102,3101.5,3100.6,0.002]
[1767879123998,0.76174102,3101.3,3100.6,0.002]
[1767879124602,0.76174102,3101.2,3100.3,0.002]
[1767879125584,0.76174102,3101.2,3100.0,0.002]
[1767879125997,0.76174102,3101.0,3100.0,0.002]
[1767879126192,0.76174102,3100.8,3100.0,0.002]
[1767879126427,1.36603899,3100.9,3100.0,0.002]
[1767879126428,0.76174102,3100.6,3100.0,0.002]
[1767879126918,0.76174102,3100.5,3100.0,0.002]
[1767879128588,3.22539027,3100.4,3100.0,0.002]
[1767879128981,6.45078054,3100.4,3100.0,0.002]
[1767879129284,0.72125216,3100.3,3100.0,0.002]
[1767879130903,0.76174102,3100.2,3099.1,0.9570773]
[1767879131124,10.39776066,3100.3,3098.4,3.22943497]
[1767879131125,0.76174102,3100.0,3098.9,0.9570773]
[1767879131527,0.76174102,3100.0,3098.4,3.22939213]
[1767879131528,0.76174102,3100.0,3098.5,0.9570773]
[1767879131913,0.76174102,3100.0,3098.6,0.9570773]
[1767879132934,0.76174102,3099.8,3098.6,0.9570773]
[1767879133231,0.76174102,3099.6,3098.6,0.9570773]
[1767879133435,0.847,3099.5,3098.6,0.9570773]
[1767879133608,0.76174102,3099.4,3098.4,0.002]
[1767879134038,0.76174102,3099.4,3097.7,0.002]
[1767879134903,0.847,3099.5,3097.6,0.9590773]
[1767879134904,0.76174102,3099.2,3097.6,0.002]
[1767879135103,0.76174102,3099.0,3097.4,0.002]
[1767879135340,0.76174102,3098.8,3097.4,0.002]
[1767879135543,1.38278811,3099.1,3097.4,0.002]
[1767879135544,0.76174102,3098.6,3097.4,0.002]
[1767879136046,0.76174102,3098.4,3097.4,0.002]
[1767879136743,0.76174102,3098.4,3097.2,0.002]
[1767879137113,0.76174102,3098.2,3097.0,0.002]
[1767879137411,0.76174102,3098.0,3097.0,0.002]
[1767879137611,0.76174102,3097.8,3097.0,0.002]
[1767879138228,0.76174102,3097.8,3096.7,0.002]
[1767879139146,0.76174102,3097.6,3096.4,0.002]
[1767879139367,0.76174102,3097.4,3096.4,0.002]
[1767879139509,0.847,3097.3,3096.4,0.002]
[1767879141831,6.45744542,3097.2,3096.4,0.002]
[1767879142545,7.21918644,3097.2,3096.4,0.002]
[1767879142722,0.76174102,3097.1,3096.4,0.002]
[1767879142927,0.72191864,3097.0,3096.4,0.002]
[1767879143552,0.76174102,3096.9,3096.3,0.002]
[1767879143744,0.847,3096.8,3096.2,0.002]
[1767879143917,3.22924403,3096.7,3096.2,0.002]
[1767879144317,6.45848806,3096.7,3096.2,0.002]
[1767879144518,0.73054881,3096.6,3096.2,0.002]
[1767879146357,3.9598975,3096.6,3096.2,0.002]
[1767879147579,0.73054881,3096.6,3096.2,0.002]
[1767879147759,4.07617405,3096.8,3096.2,0.002]
[1767879148429,8.06708912,3096.8,3096.2,0.002]
[1767879148652,8.06708912,3096.8,3096.5,0.002]
[1767879149331,8.06708912,3096.8,3096.2,0.002]
[1767879149332,0.76174102,3096.7,3095.6,0.002]
[1767879149562,0.76174102,3096.5,3095.4,0.002]
[1767879150351,0.76174102,3096.3,3095.4,0.002]
[1767879150555,3.2295569,3096.4,3095.4,0.9590773]
[1767879150755,0.847,3096.2,3095.4,0.9590773]
[1767879150957,0.76174102,3096.1,3094.9,0.002]
[1767879151953,9.6886707,3096.4,3095.1,0.9570773]
[1767879151954,0.847,3096.0,3095.1,0.9570773]
[1767879152235,0.847,3095.9,3095.2,0.9570773]
[1767879152773,4.07711763,3095.9,3095.2,0.9570773]
[1767879152979,0.847,3095.9,3095.2,0.9570773]
[1767879153351,0.847,3095.9,3095.1,0.95792358]
[1767879153702,8.47660703,3095.9,3094.9,0.002]
[1767879153840,0.76174102,3095.8,3094.9,0.002]
[1767879154562,3.99202819,3095.7,3094.9,0.002]
[1767879154744,7.22231536,3095.7,3094.9,0.002]
[1767879155280,3.23028717,3095.7,3094.9,0.002]
[1767879155582,1.17102872,3095.6,3094.9,0.002]
[1767879155950,0.32302872,3095.6,3094.9,0.002]
[1767879156150,0.848,3095.5,3094.9,0.002]
[1767879156383,3.23060024,3095.4,3094.9,0.002]
[1767879156980,0.848,3095.3,3094.9,0.002]
[1767879157159,0.40786002,3095.2,3094.9,0.002]
[1767879157560,0.76174102,3095.2,3093.3,0.95792358]
[1767879157771,0.76174102,3095.2,3094.4,3.23160755]
[1767879157979,0.848,3095.3,3094.3,0.95792358]
[1767879158290,0.848,3095.3,3094.4,4.18951787]
[1767879158588,4.07877595,3095.3,3094.4,0.95792358]
[1767879158790,0.73093875,3095.2,3094.4,0.95792358]
[1767879159305,0.73093875,3095.2,3094.1,0.95792358]
[1767879159582,0.73093875,3095.2,3094.4,3.23160633]
[1767879159751,1.57893875,3095.2,3094.4,0.95792358]
[1767879160616,4.80976208,3095.2,3094.4,0.95792358]
[1767879160816,0.848,3095.1,3094.5,4.1894634]
[1767879161001,0.848,3095.1,3094.3,3.23167017]
[1767879161002,0.848,3095.3,3094.6,0.95792358]
[1767879161201,0.848,3095.3,3094.7,0.002]
[1767879161528,0.001,3095.2,3094.7,0.002]
[1767879162515,6.46261798,3095.2,3094.7,0.002]
[1767879162719,0.7310618,3095.1,3094.7,0.002]
[1767879163021,0.7310618,3095.1,3094.4,0.002]
[1767879163222,1.49080282,3095.1,3094.4,0.002]
[1767879164111,0.7310618,3095.1,3094.4,0.95992358]
[1767879164312,0.001,3095.2,3094.4,0.95992358]
[1767879164828,0.001,3095.2,3094.6,0.95792358]
[1767879165189,0.001,3095.2,3094.4,0.002]
[1767879165632,0.849,3095.2,3094.5,0.95792358]
[1767879166711,0.849,3095.2,3094.7,0.95792358]
[1767879167422,0.001,3095.2,3094.7,0.95792358]
[1767879167622,0.848,3095.8,3095.1,0.95792358]
[1767879167812,0.848,3095.7,3095.1,0.95792358]
[1767879170192,3.23009479,3095.9,3095.1,0.95792358]
[1767879170426,0.848,3095.8,3095.1,0.95792358]
[1767879171295,1.57880897,3095.8,3095.1,0.95792358]
[1767879171491,4.80899626,3095.8,3095.1,0.95792358]
[1767879172724,0.73080897,3095.8,3095.1,4.18883515]
[1767879172947,0.848,3095.9,3095.2,0.95792358]
[1767879173430,0.001,3095.5,3095.2,0.95792358]
[1767879177409,0.001,3095.5,3094.9,0.95792358]
[1767879177800,0.001,3095.5,3094.5,0.95792358]
[1767879177801,0.848,3095.4,3094.5,0.95792358]
[1767879178129,1.60874102,3095.4,3094.5,0.95792358]
[1767879178339,1.60874102,3095.4,3094.6,0.95792358]
[1767879178340,0.848,3095.4,3094.6,0.95792358]
[1767879178541,4.56263568,3095.4,3094.7,0.95792358]
[1767879178739,1.33203239,3095.4,3094.7,0.95792358]
[1767879180336,4.56263611,3095.4,3094.7,0.95792358]
[1767879180497,1.33203239,3095.4,3094.7,0.95792358]
[1767879180704,0.849,3095.5,3094.8,0.95792358]
[1767879181030,7.31002042,3095.5,3094.8,0.95792358]
[1767879181503,4.07951021,3095.5,3094.8,0.95792358]
[1767879181703,7.31002042,3095.5,3094.8,0.95792358]
[1767879182629,4.07951021,3095.5,3094.8,0.95792358]
[1767879182937,0.848,3095.4,3094.8,0.95792358]
[1767879184602,4.07866389,3095.4,3094.8,0.95792358]
[1767879184827,0.848,3095.4,3094.8,0.95792358]
[1767879185026,4.07862109,3095.4,3094.8,0.95792358]
[1767879185228,0.848,3095.4,3095.1,0.002]
[1767879185543,0.4886633,3095.3,3095.1,0.002]
[1767879185749,0.001,3095.5,3095.1,0.97549369]
[1767879186041,0.848,3096.2,3095.5,0.97349369]
[1767879186740,3.22986983,3096.1,3095.5,0.97349369]
[1767879187042,3.22986983,3096.1,3095.0,5.79363238]
[1767879187238,6.45973966,3096.1,3095.1,0.97349369]
[1767879187444,4.05201631,3096.1,3095.1,0.97349369]
[1767879188345,0.82214648,3096.1,3095.1,0.97349369]
[1767879188540,1.67014648,3096.1,3095.1,0.97349369]
[1767879188841,1.67014648,3096.1,3095.3,0.97349369]
[1767879189219,4.90005734,3096.1,3095.3,0.97349369]
[1767879190051,4.90005734,3096.1,3095.2,3.23080899]
[1767879190052,0.848,3096.6,3095.4,0.97349369]
[1767879190931,4.07743468,3096.6,3095.6,0.97349369]
[1767879191334,7.30686936,3096.6,3095.6,0.97349369]
[1767879191521,7.30686936,3096.6,3094.9,4.07904743]
[1767879191522,0.9137251,3096.5,3095.0,0.97349369]
[1767879191721,0.9137251,3096.3,3095.2,0.97349369]
[1767879192143,0.9137251,3096.3,3095.0,4.20441533]
[1767879192344,0.9137251,3096.3,3095.1,0.97349369]
[1767879192827,0.9137251,3096.3,3095.2,0.97349369]
[1767879193135,3.22976551,3096.2,3095.3,0.97349369]
[1767879193335,0.848,3096.1,3095.3,0.97349369]
[1767879195138,4.07797203,3096.1,3095.3,0.97349369]
[1767879196860,7.30794406,3096.1,3095.3,0.97349369]
[1767879197562,0.001,3095.9,3095.3,0.97349369]
[1767879199034,0.001,3095.9,3095.4,0.97349369]
[1767879199230,0.001,3095.9,3095.5,0.97349369]
[1767879199447,0.001,3095.9,3095.6,0.97349369]
[1767879202272,0.001,3095.9,3095.7,0.97349369]
[1767879204940,0.001,3095.9,3095.1,0.848]
[1767879204941,0.001,3095.9,3095.3,0.97349369]
[1767879205158,3.23028717,3095.7,3094.9,0.97349369]
[1767879205358,0.9137251,3095.6,3094.9,0.97349369]
[1767879205599,0.9137251,3095.6,3094.8,0.002]
[1767879205763,3.23023279,3095.8,3094.9,0.97349369]
[1767879205764,4.14395789,3095.8,3094.9,0.97349369]
[1767879205964,0.9137251,3095.7,3094.9,3.23109951]
[1767879206396,0.9137251,3095.7,3094.8,4.20670281]
[1767879206397,0.9137251,3095.7,3094.8,0.002]
[1767879206578,0.9137251,3095.5,3094.8,0.002]
[1767879206762,1.65114417,3095.6,3094.8,0.97549369]
[1767879207293,3.23049588,3095.5,3094.8,0.97549369]
[1767879207801,4.88157861,3095.6,3094.8,0.97549369]
[1767879208014,4.07909028,3095.9,3094.9,0.97349369]
[1767879208793,7.30918056,3095.9,3094.9,0.97349369]
[1767879209002,0.001,3095.6,3094.9,0.97349369]
[1767879210176,0.001,3095.6,3095.0,0.97349369]
[1767879210403,0.001,3095.6,3095.1,0.97349369]
[1767879212177,0.001,3095.6,3094.9,0.97349369]
[1767879214571,0.96721144,3095.6,3094.8,0.002]
[1767879215404,0.96721144,3095.6,3094.8,0.98003622]
[1767879215782,3.23049588,3095.5,3094.8,0.98003622]
[1767879215983,0.848,3095.4,3094.8,0.98003622]
[1767879216903,0.848,3095.4,3094.8,0.002]
[1767879217091,1.67581214,3095.4,3094.8,0.002]
[1767879217901,1.67581214,3095.4,3094.8,0.98003622]
[1767879218104,0.001,3095.6,3094.8,0.98003622]
[1767879218805,3.23146787,3095.6,3094.8,0.98003622]
[1767879219310,0.001,3095.6,3094.8,0.98003622]
[1767879219612,3.23141981,3095.6,3094.8,0.98003622]
[1767879220114,6.46183962,3095.6,3094.8,0.98003622]